[Event "*** SCC Grand Prix: Titled Tuesday Blitz"]
[Site "Chess.com"]
[Date "2020.08.11"]
[Round "6"]
[White "MoreChessJulia"]
[Black "DonPreuss"]
[Result "0-1"]
[WhiteElo "1863"]
[BlackElo "2201"]
[TimeControl "180+1"]
[EndTime "11:07:45 PDT"]
[Termination "DonPreuss won by checkmate"]

1. d4 {[%clk 0:02:59.9]} 1... Nc6 {[%clk 0:02:59]} 2. d5 {[%clk 0:02:57.1]} 2...
Ne5 {[%clk 0:02:58.3]} 3. e4 {[%clk 0:02:57.1]} 3... Ng6 {[%clk 0:02:58.7]} 4.
Be3 {[%clk 0:02:55.1]} 4... e5 {[%clk 0:02:58.5]} 5. f3 {[%clk 0:02:54.4]} 5...
Bb4+ {[%clk 0:02:56.8]} 6. c3 {[%clk 0:02:54]} 6... Ba5 {[%clk 0:02:57.3]} 7.
Nd2 {[%clk 0:02:53.8]} 7... Bb6 {[%clk 0:02:57.3]} 8. Nc4 {[%clk 0:02:52.8]}
8... d6 {[%clk 0:02:56.8]} 9. Nxb6 {[%clk 0:02:52.2]} 9... axb6 {[%clk
0:02:57.7]} 10. a4 {[%clk 0:02:51.7]} 10... N8e7 {[%clk 0:02:58]} 11. Ne2 {[%clk
0:02:45.3]} 11... O-O {[%clk 0:02:58.2]} 12. h4 {[%clk 0:02:44.8]} 12... f5
{[%clk 0:02:43.6]} 13. h5 {[%clk 0:02:42.1]} 13... Nh8 {[%clk 0:02:39.7]} 14.
Qc2 {[%clk 0:02:35.2]} 14... f4 {[%clk 0:02:36.3]} 15. Bf2 {[%clk 0:02:34.9]}
15... g5 {[%clk 0:02:33]} 16. hxg6 {[%clk 0:02:34.7]} 16... Nhxg6 {[%clk
0:02:33]} 17. Nc1 {[%clk 0:02:13.8]} 17... Bd7 {[%clk 0:02:31.2]} 18. b3 {[%clk
0:02:12.2]} 18... Kg7 {[%clk 0:02:17.4]} 19. Be2 {[%clk 0:02:11.2]} 19... Ng8
{[%clk 0:02:16.2]} 20. b4 {[%clk 0:02:09.7]} 20... Qg5 {[%clk 0:02:15]} 21. Rh2
{[%clk 0:02:06]} 21... Nf6 {[%clk 0:01:52.5]} 22. Nd3 {[%clk 0:02:04.3]} 22...
Nh5 {[%clk 0:01:50.6]} 23. c4 {[%clk 0:02:01]} 23... Ng3 {[%clk 0:01:49.1]} 24.
c5 {[%clk 0:01:59]} 24... bxc5 {[%clk 0:01:45.9]} 25. bxc5 {[%clk 0:01:58.3]}
25... Rfc8 {[%clk 0:01:33.3]} 26. c6 {[%clk 0:01:49.3]} 26... bxc6 {[%clk
0:01:31.3]} 27. dxc6 {[%clk 0:01:49]} 27... Be6 {[%clk 0:01:31.6]} 28. Nb4
{[%clk 0:01:47.9]} 28... Nh4 {[%clk 0:01:27.5]} 29. Nd5 {[%clk 0:01:43.5]} 29...
Ra5 {[%clk 0:01:11.1]} 30. O-O-O {[%clk 0:01:32.8]} 30... Nxe2+ {[%clk
0:01:07.5]} 31. Qxe2 {[%clk 0:01:31.1]} 31... Ng6 {[%clk 0:01:05.1]} 32. Rdh1
{[%clk 0:01:26.7]} 32... Bxd5 {[%clk 0:00:50.4]} 33. Rxh7+ {[%clk 0:01:24.5]}
33... Kg8 {[%clk 0:00:49.7]} 34. exd5 {[%clk 0:01:23.2]} 34... Rxa4 {[%clk
0:00:49.7]} 35. Qb2 {[%clk 0:00:51.9]} 35... Rca8 {[%clk 0:00:45.7]} 36. Rxc7
{[%clk 0:00:48.2]} 36... Qf5 {[%clk 0:00:33.4]} 37. Rb7 {[%clk 0:00:20]} 37...
Ra1+ {[%clk 0:00:29]} 38. Kd2 {[%clk 0:00:19.3]} 38... Rxh1 {[%clk 0:00:27.7]}
39. Rb8+ {[%clk 0:00:17.2]} 39... Rxb8 {[%clk 0:00:27.1]} 40. Qxb8+ {[%clk
0:00:16.7]} 40... Kg7 {[%clk 0:00:22.4]} 41. c7 {[%clk 0:00:15.1]} 41... e4
{[%clk 0:00:21.7]} 42. Bd4+ {[%clk 0:00:07.3]} 42... Ne5 {[%clk 0:00:20.4]} 43.
c8=Q {[%clk 0:00:06.6]} 43... e3+ {[%clk 0:00:20.5]} 44. Ke2 {[%clk 0:00:06]}
44... Qd3# {[%clk 0:00:09.2]} 0-1

[Event "*** SCC Grand Prix: Titled Tuesday Blitz"]
[Site "Chess.com"]
[Date "2020.08.11"]
[Round "6"]
[White "Oleksandr_Bortnyk"]
[Black "MarcoRiehle"]
[Result "1-0"]
[WhiteElo "2981"]
[BlackElo "2741"]
[TimeControl "180+1"]
[EndTime "11:07:46 PDT"]
[Termination "Oleksandr_Bortnyk won by resignation"]

1. e4 {[%clk 0:03:00.3]} 1... e5 {[%clk 0:02:59.8]} 2. Nf3 {[%clk 0:02:57.9]}
2... Nf6 {[%clk 0:02:59.6]} 3. Nxe5 {[%clk 0:02:53.6]} 3... Nxe4 {[%clk
0:02:59.4]} 4. Nf3 {[%clk 0:02:54.3]} 4... d5 {[%clk 0:02:58.7]} 5. Bd3 {[%clk
0:02:31.8]} 5... Bd6 {[%clk 0:02:56.8]} 6. O-O {[%clk 0:02:28.7]} 6... O-O
{[%clk 0:02:56.4]} 7. Nc3 {[%clk 0:02:29.2]} 7... Re8 {[%clk 0:02:52.3]} 8. Nxd5
{[%clk 0:02:28]} 8... Bxh2+ {[%clk 0:02:45]} 9. Nxh2 {[%clk 0:02:28.9]} 9...
Qxd5 {[%clk 0:02:44.8]} 10. Re1 {[%clk 0:02:25.6]} 10... Bf5 {[%clk 0:02:24.2]}
11. Nf1 {[%clk 0:01:36.8]} 11... Nc6 {[%clk 0:02:19.1]} 12. Ne3 {[%clk
0:01:36.2]} 12... Qc5 {[%clk 0:02:17.7]} 13. a3 {[%clk 0:01:30.5]} 13... Bg6
{[%clk 0:02:14.8]} 14. b4 {[%clk 0:01:23.8]} 14... Qe5 {[%clk 0:02:06.4]} 15.
Rb1 {[%clk 0:01:21.4]} 15... Qf4 {[%clk 0:01:56.7]} 16. Bxe4 {[%clk 0:01:11.7]}
16... Rxe4 {[%clk 0:01:52.5]} 17. d3 {[%clk 0:01:12.6]} 17... Re6 {[%clk
0:01:48.8]} 18. Nd5 {[%clk 0:00:51.6]} 18... Rxe1+ {[%clk 0:01:48]} 19. Qxe1
{[%clk 0:00:52.5]} 19... Qd6 {[%clk 0:01:46.4]} 20. c4 {[%clk 0:00:49.1]} 20...
Bxd3 {[%clk 0:01:41.4]} 21. Bf4 {[%clk 0:00:49.3]} 21... Qf8 {[%clk 0:01:29.1]}
22. Rc1 {[%clk 0:00:43.8]} 22... Nd4 {[%clk 0:01:21.9]} 23. Nc3 {[%clk
0:00:20.3]} 23... Rd8 {[%clk 0:00:56.9]} 24. c5 {[%clk 0:00:18.4]} 24... c6
{[%clk 0:00:54.4]} 25. Bd6 {[%clk 0:00:17.5]} 25... Qe8 {[%clk 0:00:53.9]} 26.
Qxe8+ {[%clk 0:00:13.3]} 26... Rxe8 {[%clk 0:00:54.8]} 27. Rd1 {[%clk
0:00:13.7]} 27... Ne2+ {[%clk 0:00:54.8]} 28. Nxe2 {[%clk 0:00:13.9]} 28... Bxe2
{[%clk 0:00:54.5]} 29. Re1 {[%clk 0:00:14.2]} 29... Re6 {[%clk 0:00:53.8]} 30.
f3 {[%clk 0:00:11.7]} 30... Bc4 {[%clk 0:00:51.3]} 31. Rd1 {[%clk 0:00:12]}
31... Bd5 {[%clk 0:00:50.1]} 32. a4 {[%clk 0:00:09.6]} 32... Re2 {[%clk
0:00:47.9]} 33. b5 {[%clk 0:00:09.4]} 33... h5 {[%clk 0:00:46.3]} 34. Rd4 {[%clk
0:00:07.6]} 34... g5 {[%clk 0:00:42.6]} 35. Bb8 {[%clk 0:00:07]} 35... a6 {[%clk
0:00:41.1]} 36. b6 {[%clk 0:00:05.8]} 36... Kg7 {[%clk 0:00:35.6]} 37. Rxd5
{[%clk 0:00:03]} 37... cxd5 {[%clk 0:00:35.1]} 38. c6 {[%clk 0:00:03.9]} 38...
Re1+ {[%clk 0:00:20.5]} 39. Kf2 {[%clk 0:00:03.8]} 39... Rb1 {[%clk 0:00:21.4]}
40. cxb7 {[%clk 0:00:03.2]} 40... Rxb6 {[%clk 0:00:14.1]} 41. Be5+ {[%clk
0:00:04.1]} 41... Kg6 {[%clk 0:00:14.2]} 42. b8=Q {[%clk 0:00:05]} 42... Rxb8
{[%clk 0:00:15]} 43. Bxb8 {[%clk 0:00:05.9]} 43... Kf5 {[%clk 0:00:15.6]} 44.
Ke3 {[%clk 0:00:06.8]} 44... Ke6 {[%clk 0:00:13.1]} 45. Kd4 {[%clk 0:00:07.4]}
45... f5 {[%clk 0:00:13.5]} 46. a5 {[%clk 0:00:07.6]} 46... f4 {[%clk
0:00:13.7]} 47. Kc5 {[%clk 0:00:07.7]} 47... Kf5 {[%clk 0:00:12.7]} 48. Kxd5
{[%clk 0:00:08.2]} 48... g4 {[%clk 0:00:13.3]} 49. Kd4 {[%clk 0:00:07]} 49... h4
{[%clk 0:00:12.7]} 50. fxg4+ {[%clk 0:00:07.4]} 50... Kxg4 {[%clk 0:00:13.6]}
51. Ke4 {[%clk 0:00:08.2]} 51... Kg3 {[%clk 0:00:10.1]} 52. Bxf4+ {[%clk
0:00:07.7]} 52... Kxg2 {[%clk 0:00:11]} 53. Kd5 {[%clk 0:00:08.2]} 53... Kf3
{[%clk 0:00:11.3]} 54. Bh2 {[%clk 0:00:08.2]} 54... Kg4 {[%clk 0:00:11.7]} 55.
Kc6 {[%clk 0:00:08.5]} 55... Kf5 {[%clk 0:00:12.6]} 56. Kb7 {[%clk 0:00:06.7]}
56... Ke6 {[%clk 0:00:13.5]} 57. Kxa6 {[%clk 0:00:07.2]} 57... Kd7 {[%clk
0:00:14.4]} 58. Kb7 {[%clk 0:00:08]} 1-0

[Event "*** SCC Grand Prix: Titled Tuesday Blitz"]
[Site "Chess.com"]
[Date "2020.08.11"]
[Round "6"]
[White "rasmussvane"]
[Black "Fighter008"]
[Result "1-0"]
[WhiteElo "2882"]
[BlackElo "2679"]
[TimeControl "180+1"]
[EndTime "11:07:51 PDT"]
[Termination "rasmussvane won by resignation"]

1. Nf3 {[%clk 0:03:00.9]} 1... Nf6 {[%clk 0:02:59.5]} 2. g3 {[%clk 0:03:01.3]}
2... g6 {[%clk 0:02:59.3]} 3. Bg2 {[%clk 0:03:01.8]} 3... Bg7 {[%clk 0:02:59.9]}
4. O-O {[%clk 0:03:02.3]} 4... O-O {[%clk 0:03:00.5]} 5. d4 {[%clk 0:03:02.5]}
5... d6 {[%clk 0:03:00.9]} 6. Re1 {[%clk 0:03:02.9]} 6... Nbd7 {[%clk
0:02:59.7]} 7. e4 {[%clk 0:03:03.3]} 7... e5 {[%clk 0:02:59.9]} 8. Nc3 {[%clk
0:03:03.7]} 8... c6 {[%clk 0:02:59.4]} 9. a4 {[%clk 0:03:04.1]} 9... Re8 {[%clk
0:02:50.9]} 10. h3 {[%clk 0:03:03.9]} 10... Qc7 {[%clk 0:02:49.8]} 11. Be3
{[%clk 0:03:02.9]} 11... b6 {[%clk 0:02:49.5]} 12. Qd2 {[%clk 0:03:00.3]} 12...
a6 {[%clk 0:02:36.2]} 13. g4 {[%clk 0:02:57.9]} 13... exd4 {[%clk 0:02:32.2]}
14. Nxd4 {[%clk 0:02:42.3]} 14... c5 {[%clk 0:02:23.7]} 15. Nde2 {[%clk
0:02:40.8]} 15... Bb7 {[%clk 0:02:22.8]} 16. Ng3 {[%clk 0:02:38.9]} 16... Ne5
{[%clk 0:02:20]} 17. b3 {[%clk 0:02:37.6]} 17... Rad8 {[%clk 0:02:18.6]} 18.
Rad1 {[%clk 0:02:34.7]} 18... Nc6 {[%clk 0:02:08.6]} 19. Bg5 {[%clk 0:02:17.6]}
19... Nd4 {[%clk 0:01:52.8]} 20. Qf4 {[%clk 0:02:13.3]} 20... Ne6 {[%clk
0:01:52.8]} 21. Qc1 {[%clk 0:02:11.2]} 21... Nxg5 {[%clk 0:01:50.9]} 22. Qxg5
{[%clk 0:02:12.1]} 22... Nxg4 {[%clk 0:01:43.6]} 23. hxg4 {[%clk 0:02:05.6]}
23... Bxc3 {[%clk 0:01:43.1]} 24. Re3 {[%clk 0:01:55.6]} 24... Bg7 {[%clk
0:01:42.1]} 25. Red3 {[%clk 0:01:52.9]} 25... b5 {[%clk 0:01:30]} 26. axb5
{[%clk 0:01:52]} 26... axb5 {[%clk 0:01:30.9]} 27. Qf4 {[%clk 0:01:35.2]} 27...
Be5 {[%clk 0:01:26.1]} 28. Qh6 {[%clk 0:01:35.4]} 28... c4 {[%clk 0:01:23.3]}
29. bxc4 {[%clk 0:01:35]} 29... bxc4 {[%clk 0:01:24.2]} 30. Re3 {[%clk
0:01:31.7]} 30... Bg7 {[%clk 0:01:22.5]} 31. Qh4 {[%clk 0:01:27.3]} 31... Qc5
{[%clk 0:01:21.5]} 32. Nf5 {[%clk 0:01:04.2]} 32... gxf5 {[%clk 0:01:15.3]} 33.
gxf5 {[%clk 0:01:05.1]} 33... Qe5 {[%clk 0:01:13.7]} 34. Rg3 {[%clk 0:00:57.2]}
34... Kh8 {[%clk 0:01:05.4]} 35. Rh3 {[%clk 0:00:53.9]} 35... h6 {[%clk
0:01:04]} 36. Qg5 {[%clk 0:00:38]} 36... Qf6 {[%clk 0:00:57.9]} 37. Qf4 {[%clk
0:00:38.2]} 37... Kg8 {[%clk 0:00:47.8]} 38. Rg3 {[%clk 0:00:28.6]} 38... Kf8
{[%clk 0:00:47.8]} 39. Bf3 {[%clk 0:00:26.3]} 39... Re5 {[%clk 0:00:44.5]} 40.
Rb1 {[%clk 0:00:19.7]} 40... Ba8 {[%clk 0:00:38.8]} 41. Rb6 {[%clk 0:00:19.4]}
41... Ke7 {[%clk 0:00:33.5]} 42. Bg2 {[%clk 0:00:16.6]} 42... h5 {[%clk
0:00:25.7]} 43. Qe3 {[%clk 0:00:16]} 43... h4 {[%clk 0:00:25.1]} 44. Rg4 {[%clk
0:00:16.3]} 44... Rd7 {[%clk 0:00:22.8]} 45. f4 {[%clk 0:00:16.1]} 45... Rc5
{[%clk 0:00:22.2]} 46. e5 {[%clk 0:00:16.4]} 46... dxe5 {[%clk 0:00:22.4]} 47.
Qxc5+ {[%clk 0:00:14.1]} 47... Rd6 {[%clk 0:00:15.4]} 48. Qxd6+ {[%clk
0:00:10.9]} 48... Qxd6 {[%clk 0:00:15.3]} 49. Rxd6 {[%clk 0:00:11.8]} 49... Bxg2
{[%clk 0:00:15.2]} 50. Rxg2 {[%clk 0:00:09.6]} 1-0

[Event "*** SCC Grand Prix: Titled Tuesday Blitz"]
[Site "Chess.com"]
[Date "2020.08.11"]
[Round "6"]
[White "TargetA"]
[Black "Adham_Fawzy"]
[Result "0-1"]
[WhiteElo "2589"]
[BlackElo "2734"]
[TimeControl "180+1"]
[EndTime "11:07:53 PDT"]
[Termination "Adham_Fawzy won on time"]

1. d4 {[%clk 0:03:00.9]} 1... c5 {[%clk 0:03:00.9]} 2. dxc5 {[%clk 0:02:59.8]}
2... Nf6 {[%clk 0:03:00.6]} 3. Nc3 {[%clk 0:02:58.9]} 3... e6 {[%clk 0:03:00.9]}
4. e4 {[%clk 0:02:58.2]} 4... Bxc5 {[%clk 0:03:00.7]} 5. e5 {[%clk 0:02:55.1]}
5... Qb6 {[%clk 0:02:53.6]} 6. Na4 {[%clk 0:02:27.3]} 6... Bxf2+ {[%clk
0:02:26]} 7. Ke2 {[%clk 0:02:26.5]} 7... Qb5+ {[%clk 0:01:53.7]} 8. Kxf2 {[%clk
0:02:18.5]} 8... Ne4+ {[%clk 0:01:53.8]} 9. Ke3 {[%clk 0:01:10.3]} 9... Qxa4
{[%clk 0:01:54.7]} 10. Nf3 {[%clk 0:01:10.4]} 10... Nc6 {[%clk 0:01:39.9]} 11.
b3 {[%clk 0:00:59.9]} 11... Qb4 {[%clk 0:01:39.4]} 12. Bb2 {[%clk 0:00:44]}
12... Nc3 {[%clk 0:01:36.7]} 13. Qd3 {[%clk 0:00:37.4]} 13... Nd5+ {[%clk
0:01:33.6]} 14. Kf2 {[%clk 0:00:36]} 14... Qc5+ {[%clk 0:01:08.5]} 15. Kg3
{[%clk 0:00:36.1]} 15... Ncb4 {[%clk 0:01:07]} 16. Qc4 {[%clk 0:00:31.1]} 16...
Qxc4 {[%clk 0:00:51.6]} 17. Bxc4 {[%clk 0:00:19.8]} 17... Ne3 {[%clk 0:00:51.7]}
18. c3 {[%clk 0:00:16.8]} 18... Nxc4 {[%clk 0:00:50.5]} 19. bxc4 {[%clk
0:00:16.1]} 19... Nd3 {[%clk 0:00:46.3]} 20. Ba3 {[%clk 0:00:15.5]} 20... b6
{[%clk 0:00:28.7]} 21. Rhd1 {[%clk 0:00:15.6]} 21... Nc5 {[%clk 0:00:28.7]} 22.
Bxc5 {[%clk 0:00:15.9]} 22... bxc5 {[%clk 0:00:29.6]} 23. Nd2 {[%clk 0:00:13.6]}
23... Bb7 {[%clk 0:00:21.2]} 24. Nb3 {[%clk 0:00:13.1]} 24... Rc8 {[%clk
0:00:20.3]} 25. Rab1 {[%clk 0:00:13.4]} 25... Ke7 {[%clk 0:00:19.6]} 26. Nxc5
{[%clk 0:00:11.5]} 26... Rxc5 {[%clk 0:00:20.5]} 27. Rxb7 {[%clk 0:00:11]} 27...
Rd8 {[%clk 0:00:20.9]} 28. Rxa7 {[%clk 0:00:11]} 28... Rxc4 {[%clk 0:00:18.7]}
29. Rd3 {[%clk 0:00:10.4]} 29... Re4 {[%clk 0:00:18.4]} 30. Ra5 {[%clk
0:00:09.5]} 30... h5 {[%clk 0:00:16.1]} 31. Kf3 {[%clk 0:00:09.4]} 31... Rc4
{[%clk 0:00:15.6]} 32. Ra7 {[%clk 0:00:09]} 32... g5 {[%clk 0:00:14.7]} 33. a4
{[%clk 0:00:07.7]} 33... Rc5 {[%clk 0:00:11.6]} 34. Ke4 {[%clk 0:00:06.4]} 34...
Rc4+ {[%clk 0:00:12]} 35. Ke3 {[%clk 0:00:06.5]} 35... h4 {[%clk 0:00:11.6]} 36.
a5 {[%clk 0:00:06.1]} 36... g4 {[%clk 0:00:11.4]} 37. a6 {[%clk 0:00:05.5]}
37... Ra4 {[%clk 0:00:11.6]} 38. Rd4 {[%clk 0:00:05.4]} 38... Ra5 {[%clk
0:00:11.8]} 39. Rxg4 {[%clk 0:00:04.9]} 39... Rxe5+ {[%clk 0:00:11.5]} 40. Kd3
{[%clk 0:00:05.2]} 40... Rd5+ {[%clk 0:00:10.3]} 41. Kc4 {[%clk 0:00:03.9]}
41... Ra5 {[%clk 0:00:09.7]} 42. Kb3 {[%clk 0:00:03.1]} 42... h3 {[%clk
0:00:08.3]} 43. gxh3 {[%clk 0:00:02.3]} 43... Rh5 {[%clk 0:00:06.6]} 44. Rb4
{[%clk 0:00:02.7]} 44... Rxh3 {[%clk 0:00:05.7]} 45. Rab7 {[%clk 0:00:02.6]}
45... Rh5 {[%clk 0:00:02.8]} 0-1

[Event "*** SCC Grand Prix: Titled Tuesday Blitz"]
[Site "Chess.com"]
[Date "2020.08.11"]
[Round "6"]
[White "Ranindu2003"]
[Black "Artem_Sadovsky"]
[Result "1-0"]
[WhiteElo "2605"]
[BlackElo "2418"]
[TimeControl "180+1"]
[EndTime "11:07:54 PDT"]
[Termination "Ranindu2003 won by checkmate"]

1. e4 {[%clk 0:03:00.6]} 1... c6 {[%clk 0:02:59.6]} 2. d4 {[%clk 0:03:00.2]}
2... d5 {[%clk 0:02:59.9]} 3. e5 {[%clk 0:03:00.8]} 3... c5 {[%clk 0:02:58.4]}
4. dxc5 {[%clk 0:03:00.3]} 4... Nc6 {[%clk 0:02:58.5]} 5. f4 {[%clk 0:03:00]}
5... Bf5 {[%clk 0:02:54.6]} 6. c3 {[%clk 0:02:59.1]} 6... e6 {[%clk 0:02:39.1]}
7. Be3 {[%clk 0:02:58.3]} 7... Nge7 {[%clk 0:02:28.9]} 8. Nf3 {[%clk 0:02:56.3]}
8... h6 {[%clk 0:01:52]} 9. Bd3 {[%clk 0:02:50.7]} 9... Bxd3 {[%clk 0:01:48.8]}
10. Qxd3 {[%clk 0:02:51.6]} 10... Nf5 {[%clk 0:01:49]} 11. Bf2 {[%clk
0:02:51.7]} 11... h5 {[%clk 0:01:43.7]} 12. g3 {[%clk 0:02:45.4]} 12... a5
{[%clk 0:01:27.3]} 13. Nbd2 {[%clk 0:02:40.4]} 13... a4 {[%clk 0:01:18.5]} 14.
O-O {[%clk 0:02:39.7]} 14... Qa5 {[%clk 0:01:19]} 15. b4 {[%clk 0:02:39.2]}
15... axb3 {[%clk 0:01:18.1]} 16. Nxb3 {[%clk 0:02:39.1]} 16... Qa6 {[%clk
0:01:13.4]} 17. Qd2 {[%clk 0:02:29.7]} 17... Be7 {[%clk 0:01:09]} 18. Nfd4
{[%clk 0:02:17.4]} 18... g6 {[%clk 0:00:59.9]} 19. a4 {[%clk 0:02:13.9]} 19...
Na5 {[%clk 0:00:53.9]} 20. Nxa5 {[%clk 0:02:09.8]} 20... Qxa5 {[%clk 0:00:54.3]}
21. Nb5 {[%clk 0:02:10.1]} 21... O-O {[%clk 0:00:54.4]} 22. h3 {[%clk
0:01:57.2]} 22... Rfc8 {[%clk 0:00:51.4]} 23. g4 {[%clk 0:01:57.1]} 23... hxg4
{[%clk 0:00:47.9]} 24. hxg4 {[%clk 0:01:58]} 24... Nh6 {[%clk 0:00:48.8]} 25.
Qe2 {[%clk 0:01:57.6]} 25... Bxc5 {[%clk 0:00:42.6]} 26. Bxc5 {[%clk 0:01:49.6]}
26... Rxc5 {[%clk 0:00:43.5]} 27. Kg2 {[%clk 0:01:50.2]} 27... Rc4 {[%clk
0:00:32.3]} 28. Rh1 {[%clk 0:01:42]} 28... Kg7 {[%clk 0:00:32]} 29. Rxh6 {[%clk
0:00:42]} 29... Kxh6 {[%clk 0:00:31.8]} 30. f5 {[%clk 0:00:41.6]} 30... gxf5
{[%clk 0:00:14]} 31. Rh1+ {[%clk 0:00:40.1]} 31... Kg7 {[%clk 0:00:10.9]} 32.
gxf5 {[%clk 0:00:39.7]} 32... exf5 {[%clk 0:00:09.8]} 33. Nd6 {[%clk 0:00:35.7]}
33... Rg4+ {[%clk 0:00:09.8]} 34. Kf2 {[%clk 0:00:26.9]} 34... Qc5+ {[%clk
0:00:08.9]} 35. Kf1 {[%clk 0:00:23.2]} 35... Rf4+ {[%clk 0:00:09.2]} 36. Kg2
{[%clk 0:00:21.2]} 36... Qxc3 {[%clk 0:00:09.8]} 37. Rh3 {[%clk 0:00:21]} 37...
Qd4 {[%clk 0:00:03.7]} 38. Rg3+ {[%clk 0:00:20.2]} 38... Kf8 {[%clk 0:00:02.6]}
39. Qh5 {[%clk 0:00:19.7]} 39... Qd2+ {[%clk 0:00:02.6]} 40. Kh3 {[%clk
0:00:20.2]} 40... Rh4+ {[%clk 0:00:02.5]} 41. Qxh4 {[%clk 0:00:18.9]} 41... Qd1
{[%clk 0:00:02.9]} 42. Qh6+ {[%clk 0:00:16.3]} 42... Ke7 {[%clk 0:00:03.5]} 43.
Qf6+ {[%clk 0:00:16.3]} 43... Kd7 {[%clk 0:00:04.2]} 44. Qxf7+ {[%clk
0:00:16.7]} 44... Kc6 {[%clk 0:00:04.9]} 45. Qxb7+ {[%clk 0:00:16.8]} 45... Kc5
{[%clk 0:00:05.4]} 46. Qb5+ {[%clk 0:00:12.6]} 46... Kd4 {[%clk 0:00:05.9]} 47.
Qb2+ {[%clk 0:00:12.3]} 47... Kc5 {[%clk 0:00:05.2]} 48. Rc3+ {[%clk 0:00:11.7]}
48... Kd4 {[%clk 0:00:05.7]} 49. Rc1+ {[%clk 0:00:12.3]} 49... Ke3 {[%clk
0:00:06.1]} 50. Rxd1 {[%clk 0:00:12.4]} 50... Rh8+ {[%clk 0:00:06.7]} 51. Kg2
{[%clk 0:00:12]} 51... Rh2+ {[%clk 0:00:07.6]} 52. Kf1 {[%clk 0:00:12.6]} 52...
d4 {[%clk 0:00:08.1]} 53. Qxh2 {[%clk 0:00:11.9]} 53... f4 {[%clk 0:00:07.8]}
54. Qe2# {[%clk 0:00:11.8]} 1-0

[Event "*** SCC Grand Prix: Titled Tuesday Blitz"]
[Site "Chess.com"]
[Date "2020.08.11"]
[Round "6"]
[White "VladaSviridova"]
[Black "MuhittinBuker"]
[Result "0-1"]
[WhiteElo "2227"]
[BlackElo "2002"]
[TimeControl "180+1"]
[EndTime "11:07:54 PDT"]
[Termination "MuhittinBuker won on time"]

1. d4 {[%clk 0:03:00.9]} 1... Nf6 {[%clk 0:02:59.1]} 2. c4 {[%clk 0:03:00.9]}
2... e6 {[%clk 0:02:58.8]} 3. Nf3 {[%clk 0:03:00.7]} 3... b6 {[%clk 0:02:58.6]}
4. g3 {[%clk 0:03:00.5]} 4... Ba6 {[%clk 0:02:58.3]} 5. b3 {[%clk 0:03:00.3]}
5... Bb4+ {[%clk 0:02:58.2]} 6. Bd2 {[%clk 0:03:00.3]} 6... Be7 {[%clk
0:02:58.6]} 7. Bg2 {[%clk 0:03:00.2]} 7... c6 {[%clk 0:02:58.5]} 8. O-O {[%clk
0:03:00.1]} 8... O-O {[%clk 0:02:58.7]} 9. Bc3 {[%clk 0:02:56]} 9... d5 {[%clk
0:02:59.1]} 10. Nbd2 {[%clk 0:02:55.9]} 10... Nbd7 {[%clk 0:02:54.1]} 11. Re1
{[%clk 0:02:48.7]} 11... c5 {[%clk 0:02:44.6]} 12. dxc5 {[%clk 0:02:17.2]} 12...
Nxc5 {[%clk 0:02:40.9]} 13. Nd4 {[%clk 0:02:15.9]} 13... Bb7 {[%clk 0:02:36.9]}
14. Rc1 {[%clk 0:01:29.3]} 14... Rc8 {[%clk 0:02:33.6]} 15. Bb2 {[%clk
0:01:08.3]} 15... Nce4 {[%clk 0:02:27]} 16. Nxe4 {[%clk 0:01:07.3]} 16... dxe4
{[%clk 0:02:26.2]} 17. e3 {[%clk 0:00:56]} 17... Qc7 {[%clk 0:02:10.7]} 18. Qe2
{[%clk 0:00:53.2]} 18... Rfd8 {[%clk 0:02:06.4]} 19. Red1 {[%clk 0:00:52.4]}
19... a6 {[%clk 0:02:02.4]} 20. h4 {[%clk 0:00:50.9]} 20... Nd7 {[%clk
0:01:59.2]} 21. Qg4 {[%clk 0:00:31.6]} 21... Ne5 {[%clk 0:01:50.4]} 22. Qe2
{[%clk 0:00:14]} 22... Bf6 {[%clk 0:01:33.3]} 23. Rc2 {[%clk 0:00:13.4]} 23...
Rd7 {[%clk 0:01:30.4]} 24. Rcd2 {[%clk 0:00:13.5]} 24... Rcd8 {[%clk 0:01:30.9]}
25. Ba1 {[%clk 0:00:12.6]} 25... g6 {[%clk 0:01:17.1]} 26. Kh1 {[%clk
0:00:12.7]} 26... h5 {[%clk 0:01:16.6]} 27. Bh3 {[%clk 0:00:12.2]} 27... Nf3
{[%clk 0:01:00.6]} 28. Nxf3 {[%clk 0:00:11.1]} 28... exf3 {[%clk 0:01:00.5]} 29.
Qe1 {[%clk 0:00:11.2]} 29... Bxa1 {[%clk 0:00:49.5]} 30. Rxd7 {[%clk 0:00:10.3]}
30... Rxd7 {[%clk 0:00:47.2]} 31. Rxa1 {[%clk 0:00:10.2]} 31... Qd6 {[%clk
0:00:45.2]} 32. Bf1 {[%clk 0:00:10.1]} 32... e5 {[%clk 0:00:39]} 33. Rc1 {[%clk
0:00:09.2]} 33... e4 {[%clk 0:00:36.8]} 34. Qc3 {[%clk 0:00:08.6]} 34... Qd2
{[%clk 0:00:31.3]} 35. Qc2 {[%clk 0:00:06.1]} 35... a5 {[%clk 0:00:25.4]} 36.
Kg1 {[%clk 0:00:05.8]} 36... Rd8 {[%clk 0:00:18.7]} 37. Qxd2 {[%clk 0:00:05.4]}
37... Rxd2 {[%clk 0:00:18]} 38. Ra1 {[%clk 0:00:05.3]} 38... Bc8 {[%clk
0:00:17.1]} 39. a3 {[%clk 0:00:04.1]} 39... Rb2 {[%clk 0:00:14.2]} 40. b4 {[%clk
0:00:04.3]} 40... axb4 {[%clk 0:00:11.1]} 41. axb4 {[%clk 0:00:04.6]} 41... Be6
{[%clk 0:00:11.4]} 42. c5 {[%clk 0:00:03.2]} 42... Rxb4 {[%clk 0:00:10.5]} 43.
c6 {[%clk 0:00:03.5]} 43... Rb2 {[%clk 0:00:09.5]} 44. c7 {[%clk 0:00:02.7]}
44... Rc2 {[%clk 0:00:08.4]} 45. Rb1 {[%clk 0:00:02.7]} 45... Rxc7 {[%clk
0:00:08.1]} 46. Rxb6 {[%clk 0:00:02.8]} 46... Rc1 {[%clk 0:00:08.7]} 47. Rb8+
{[%clk 0:00:02.1]} 47... Kg7 {[%clk 0:00:08.6]} 48. g4 {[%clk 0:00:01.8]} 48...
Bxg4 {[%clk 0:00:08.2]} 49. Rb4 {[%clk 0:00:01.7]} 49... Bh3 {[%clk 0:00:07.9]}
50. Rxe4 {[%clk 0:00:01.7]} 50... Bxf1 {[%clk 0:00:08.4]} 51. Kh2 {[%clk
0:00:01.3]} 51... Be2 {[%clk 0:00:06.9]} 0-1